lending/lending_fUSD_20260110
["ID","MTS","AMOUNT","RATE_DAILY","PERIOD"]
[401240615,1768064581504,-193.63985328,0.00043285,120]
[401240616,1768064581563,-392.66852638,0.00043285,120]
[401240617,1768064581619,-480.93380602,0.00043285,30]
[401240618,1768064581674,-172.56935327,0.00043285,60]
[401240619,1768064581727,-343.72793279,0.00043285,120]
[401240620,1768064581776,-407.94656168,0.00043285,120]
[401240621,1768064581825,-193.73642068,0.00043285,120]
[401240622,1768064581874,-485.86428494,0.00043285,120]
[401240623,1768064581926,-165.80942773,0.00043285,120]
[401240624,1768064581975,-619.81312455,0.00043285,90]
[401240625,1768064582021,-416.40447353,0.00043285,120]
[401240626,1768064582069,-177.09437619,0.00043285,120]
[401240627,1768064582114,-244.77321801,0.00043285,120]
[401240628,1768064582371,-453.98094248,0.00043285,120]
[401240629,1768064582428,-383.54573989,0.00043285,120]
[401240630,1768064582484,-477.11725027,0.00043285,60]
[401240631,1768064582535,-236.98224602,0.00043285,120]
[401240632,1768064582586,-208.40303353,0.00043285,120]
[401240633,1768064582635,-274.60951256,0.00043285,30]
[401240634,1768064582684,-221.12424116,0.00043285,30]
[401240635,1768064582732,-203.26302859,0.00043285,120]
[401240636,1768064582778,-341.66577155,0.00043285,120]
[401240637,1768064582822,-342.64571888,0.00043285,120]
[401240638,1768064582866,-430.15238978,0.00043285,120]
[401240639,1768064582910,-384.89769766,0.00043285,120]
[401240640,1768064582956,-192.71160024,0.00043285,120]
[401240641,1768064582999,-268.78544013,0.00043285,120]
[401240642,1768064583045,-330.88664653,0.00043285,120]
[401240643,1768064583094,-242.07087531,0.00043285,30]
[401240644,1768064583144,-238.92346714,0.00043285,120]
[401240645,1768064583197,-234.55286547,0.00043285,120]
[401240646,1768064583249,-374.15717413,0.00043285,30]
[401240647,1768064583301,-219.66138636,0.00043285,120]
[401240648,1768064583358,-244.73052143,0.00043285,30]
[401240649,1768064583417,-325.0774439,0.00043285,120]
[401240650,1768064583473,-259.39698483,0.00043285,120]
[401240651,1768064583532,-281.4576736,0.00043285,120]
[401240652,1768064583589,-352.66742161,0.00043285,120]
[401240653,1768064583645,-176.76924493,0.00043285,120]
[401240654,1768064583699,-290.33546554,0.00043285,120]
[401240655,1768064583753,-490.94928243,0.00043285,120]
[401240656,1768064583807,-489.94488303,0.00043285,120]
[401240657,1768064583861,-244.21059252,0.00043285,120]
[401240658,1768064583914,-441.17104826,0.00043285,120]
[401240659,1768064583968,-406.0857102,0.00043285,120]
[401240660,1768064584020,-355.65465715,0.00043285,30]
[401240661,1768064584073,-254.41056927,0.00043285,120]
[401240662,1768064584126,-281.02960757,0.00043285,120]
[401240663,1768064584178,-483.75390585,0.00043285,120]
[401240664,1768064584231,-347.38541747,0.00043285,120]
[401240665,1768064584285,-371.22924429,0.00043285,120]
[401240666,1768064584339,-213.78219862,0.00043285,120]
[401240667,1768064584393,-243.02592692,0.00043285,120]
[401240668,1768064584447,-412.07508909,0.00043285,120]
[401240669,1768064584501,-191.47054472,0.00043285,120]
[401240670,1768064584558,-259.85822678,0.00043285,120]
[401240671,1768064584614,-376.97663327,0.00043285,120]
[401240672,1768064584673,-303.09033967,0.00043285,120]
[401240673,1768064584727,-419.50331741,0.00043285,120]
[401240674,1768064584782,-227.82502546,0.00043285,120]
[401240675,1768064584837,-474.60860904,0.00043285,120]
[401240676,1768064584908,-334.90792081,0.00043285,120]
[401240677,1768064584964,-175.21195491,0.00043285,120]
[401240678,1768064585018,-325.21281294,0.00043285,120]
[401240679,1768064585076,-224.14336459,0.00043285,120]
[401240680,1768064585129,-309.11363023,0.00043285,30]
[401240681,1768064585179,-270.35524351,0.00043285,120]
[401240682,1768064585228,-193.74305102,0.00043285,30]
[401240683,1768064585275,-264.79582414,0.00043285,120]
[401240684,1768064585326,-177.29967493,0.00043285,120]
[401240685,1768064585382,-513.04699995,0.00043285,120]
[401240686,1768064585433,-414.26504814,0.00043285,120]
[401240687,1768064585480,-285.7923076,0.00043285,120]
[401240688,1768064585529,-254.66730799,0.00043285,30]
[401240689,1768064585580,-154.1820436,0.00043285,120]
[401240690,1768064585628,-226.99768524,0.00043285,120]
[401240691,1768064585674,-431.53292804,0.00043285,30]
[401240692,1768064585720,-210.02514574,0.00043285,120]
[401240693,1768064585764,-255.95056897,0.00043285,120]
[401240694,1768064585808,-393.36172439,0.00043285,120]
[401240695,1768064585852,-198.68186685,0.00043285,120]
[401240696,1768064585894,-421.22111076,0.00043285,120]
[401240697,1768064585936,-473.64337031,0.00043285,120]
[401240698,1768064585977,-175.4017217,0.00043285,60]
[401240699,1768064586018,-267.47684672,0.00043285,120]
[401240700,1768064586059,-232.17680365,0.00043285,120]
[401240701,1768064586100,-407.67303081,0.00043285,120]
[401240702,1768064586143,-253.99237582,0.00043285,120]
[401240703,1768064586185,-299.49067841,0.00043285,30]
[401240704,1768064586227,-283.77588868,0.00043285,30]
[401240705,1768064586268,-180.82033973,0.00043285,30]
[401240706,1768064586310,-216.55642909,0.00043285,31]
[401240707,1768064586354,-306.7287605,0.00043285,120]
[401240708,1768064586401,-533.68228701,0.00043285,30]
[401240709,1768064586442,-180.74888361,0.00043285,120]
[401240710,1768064586485,-439.29042022,0.00043285,120]
[401240711,1768064586529,-196.89910217,0.00043285,120]
[401240712,1768064586569,-238.6038684,0.00043285,120]
[401240713,1768064586611,-274.71717906,0.00043285,120]
[401240714,1768064586654,-482.43392213,0.00043285,60]
[401240715,1768064586696,-335.13132123,0.00043285,120]
[401240716,1768064586737,-194.95371937,0.00043285,120]
[401240717,1768064586778,-373.93322572,0.00043285,30]
[401240718,1768064586818,-327.92267211,0.00043285,120]
[401240719,1768064586859,-494.4019543,0.00043285,30]
[401240720,1768064586899,-234.54215138,0.00043285,120]
[401240721,1768064586938,-323.14714574,0.00043285,120]
[401240722,1768064586979,-194.09093473,0.00043285,120]
[401240723,1768064587238,-170.40291711,0.00043285,120]
[401240724,1768064587297,-165.62441046,0.00043285,120]
[401240725,1768064587358,-173.3389118,0.00043285,120]
[401240726,1768064587416,-400.0,0.00043285,120]
[401240727,1768064587470,-369.5751248,0.00043285,120]
[401240728,1768064587522,-495.01832796,0.00043285,120]
[401240729,1768064587570,-297.12524933,0.00043285,120]
[401240730,1768064587618,-479.36657099,0.00043285,120]
[401240731,1768064587667,-211.78453467,0.00043285,120]
[401240732,1768064587715,-500.0,0.00043285,120]
[401240733,1768064587763,-500.0,0.00043285,120]
[401240734,1768064587811,-500.0,0.00043285,120]
[401240735,1768064587858,-1000.0,0.00043285,30]
[401240736,1768064587904,-63183.0,0.00043285,30]
[401240737,1768064587948,-1101.0,0.00043285,30]
[401240738,1768064587992,-1101.0,0.00043285,30]
[401240739,1768064588035,-1101.0,0.00043285,30]
[401240740,1768064588081,-1101.0,0.00043285,30]
[401240741,1768064588126,-1101.0,0.00043285,30]
[401240742,1768064588170,-348.9687381,0.00043285,30]
[401240743,1768064588217,-50000.0,0.00043285,44]
[401240744,1768064588264,-50000.0,0.00043285,45]
[401240745,1768064588314,-50000.0,0.00043285,46]
[401240746,1768064588367,-50000.0,0.00043285,47]
[401240747,1768064588422,-50000.0,0.00043285,48]
[401240748,1768064588477,-50000.0,0.00043285,49]
[401240749,1768064588529,-1843.47512221,0.00043285,120]
[401240750,1768064588586,-50000.0,0.00043285,50]
[401240751,1768064588639,-455.063049,0.00043285,120]
[401240752,1768064588693,-289.662786,0.00043285,120]
[401240753,1768064588745,-464.341494,0.00043285,120]
[401240754,1768064588798,-582.13527893,0.00043285,120]
[401240755,1768064588844,-3000.0,0.00043285,30]
[401240756,1768064588890,-3000.0,0.00043285,30]
[401240757,1768064588935,-3000.0,0.00043285,30]
[401240758,1768064588980,-1028.19,0.00043285,30]
[401240759,1768064589026,-491.72255786,0.00043285,120]
[401240760,1768064589072,-258.7340961,0.00043285,120]
[401240761,1768064589117,-500.0,0.00043285,120]
[401240762,1768064589163,-500.0,0.00043285,120]
[401240763,1768064589212,-507.03005654,0.00043285,120]
[401240764,1768064589260,-500.0,0.00043285,120]
[401240765,1768064589305,-491.84818643,0.00043285,30]
[401240766,1768064589350,-5050.0,0.00043285,36]
[401240767,1768064589397,-500.0,0.00043285,120]
[401240768,1768064589439,-500.0,0.00043285,120]
[401240769,1768064589483,-607.20848679,0.00043285,120]
[401240770,1768064589528,-150.0,0.00043285,30]
[401240771,1768064589574,-546.8440064,0.00043285,120]
[401240772,1768064589617,-557.30195703,0.00043285,120]
[401240773,1768064589662,-800.0,0.00043285,120]
[401240774,1768064589711,-800.0,0.00043285,120]
[401240775,1768064589756,-800.0,0.00043285,120]
[401240776,1768064589800,-800.0,0.00043285,120]
[401240777,1768064589845,-800.0,0.00043285,120]
[401240778,1768064589887,-800.0,0.00043285,120]
[401240779,1768064589927,-800.0,0.00043285,120]
[401240780,1768064589968,-800.0,0.00043285,120]
[401240781,1768064590013,-388.98771565,0.00043285,120]
[401240782,1768064590059,-1669.26,0.00043285,120]
[401240783,1768064590105,-1669.26,0.00043285,120]
[401240784,1768064590154,-1669.26,0.00043285,120]
[401240785,1768064590200,-1669.26,0.00043285,120]
[401240786,1768064590247,-1669.26,0.00043285,120]
[401240787,1768064590296,-1669.26,0.00043285,120]
[401240788,1768064590348,-1669.26,0.00043285,120]
[401240789,1768064590403,-1669.26,0.00043285,120]
[401240790,1768064590450,-1669.26,0.00043285,120]
[401240791,1768064590500,-1669.26,0.00043285,120]
[401240792,1768064590559,-1669.26,0.00043285,120]
[401240793,1768064590610,-1669.26,0.00043285,120]
[401240794,1768064590663,-1669.26,0.00043285,120]
[401240795,1768064590715,-1669.26,0.00043285,120]
[401240796,1768064590761,-1669.26,0.00043285,120]
[401240797,1768064590804,-1669.26,0.00043285,120]
[401240798,1768064590848,-1669.26,0.00043285,120]
[401240799,1768064590892,-1669.26,0.00043285,120]
[401240800,1768064590937,-1669.26,0.00043285,120]
[401240801,1768064590990,-1669.26,0.00043285,120]
[401240802,1768064591036,-1669.26,0.00043285,120]
[401240803,1768064591080,-1669.26,0.00043285,120]
[401240804,1768064591123,-1669.26,0.00043285,120]
[401240805,1768064591168,-1669.28155615,0.00043285,120]
[401240806,1768064591219,-410.30398903,0.00043285,120]
[401240807,1768064591271,-174.84030218,0.00043285,120]
[401240808,1768064591323,-500.0,0.00043285,120]
[401240809,1768064591377,-500.0,0.00043285,120]
[401240810,1768064591430,-500.0,0.00043285,120]
[401240811,1768064591486,-500.0,0.00043285,120]
[401240812,1768064591543,-500.0,0.00043285,120]
[401240813,1768064591599,-500.0,0.00043285,120]
[401240814,1768064591660,-500.0,0.00043285,120]
[401240815,1768064591716,-500.0,0.00043285,120]
[401240816,1768064591767,-500.0,0.00043285,120]
[401240817,1768064591814,-500.0,0.00043285,120]
[401240818,1768064592070,-500.0,0.00043285,120]
[401240819,1768064592125,-500.0,0.00043285,120]
[401240820,1768064592178,-500.0,0.00043285,120]
[401240821,1768064592234,-500.0,0.00043285,120]
[401240822,1768064592287,-500.0,0.00043285,120]
[401240823,1768064592337,-500.0,0.00043285,120]
[401240824,1768064592392,-500.0,0.00043285,120]
[401240825,1768064592447,-500.0,0.00043285,120]
[401240826,1768064592505,-500.0,0.00043285,120]
[401240827,1768064592563,-500.0,0.00043285,120]
[401240828,1768064592619,-500.0,0.00043285,120]
[401240829,1768064592677,-583.57728352,0.00043285,120]
[401240830,1768064592731,-500.0,0.00043285,120]
[401240831,1768064592783,-500.0,0.00043285,120]
[401240832,1768064592834,-500.0,0.00043285,120]
[401240833,1768064592886,-500.0,0.00043285,120]
[401240834,1768064592938,-500.0,0.00043285,120]
[401240835,1768064592992,-503.52900581,0.00043285,120]
[401240836,1768064593045,-1000.0,0.00043285,120]
[401240837,1768064593096,-1000.0,0.00043285,120]
[401240838,1768064593145,-1000.0,0.00043285,120]
[401240839,1768064593201,-1000.0,0.00043285,120]
[401240840,1768064593256,-904.89195374,0.00043285,120]
[401240841,1768064593312,-169.26223297,0.00043285,120]
[401240842,1768064594327,491.84818643,0.00043285,30]
[401240872,1768064909661,166.66,0.00014567,2]
[401240875,1768065032208,-426.83436047,0.0001476,2]
[401240876,1768065032222,-459.25366329,0.0001476,2]
[401240877,1768065032235,-313.91197624,0.0001476,2]
[401240878,1768065032246,-272.0,0.0001476,2]
[401240879,1768065032256,-4843.98862491,0.00014761,2]
[401240880,1768065032267,-18037.19971696,0.00014761,2]
[401240881,1768065032278,-782.76857672,0.00014761,2]
[401240882,1768065032289,-1349.61288932,0.00014761,2]
[401240883,1768065032341,-1422.63899574,0.00014761,2]
[401240884,1768065032377,-1235.14101958,0.00014761,2]
[401240885,1768065032429,-1863.64,0.00014761,2]
[401240886,1768065032441,-4201.65523545,0.00014761,2]
[401240887,1768065032453,-891.40957303,0.00014761,2]
[401240905,1768065033321,168.78764584,0.0001467,2]
[401240907,1768065038295,-364.96210735,0.00014761,2]
[401240908,1768065038308,-13861.72199951,0.00014761,2]
[401240909,1768065038362,-78078.28851271,0.00014761,2]
[401240910,1768065038374,-43248.59306369,0.00014761,2]
[401240911,1768065038404,-19845.24128045,0.00014761,2]
[401240912,1768065038416,-5778.20325848,0.00014761,2]
[401241070,1768065040400,-763.45759774,0.00014761,2]
[401241072,1768065040411,-18411.33516566,0.00014761,2]
[401241077,1768065040454,-629.67317731,0.00014761,2]
[401241084,1768065040508,-396.71618048,0.00014761,2]
[401241086,1768065040518,-2183.03973941,0.00014761,2]
[401241089,1768065040530,-640330.34321514,0.00014761,2]
[401241098,1768065040615,-3806.85475125,0.00014761,2]
[401241101,1768065040627,-1750.0,0.00014761,2]
[401241106,1768065040672,-134918.12578827,0.00014761,2]
[401241108,1768065040684,-356.68236483,0.00014761,2]
[401241110,1768065040695,-644.38,0.00014761,2]
[401241517,1768065044812,-4.32716601,0.00014761,2]
[401241519,1768065044822,-1356.4829,0.00014761,2]
[401241521,1768065044831,-165.76188916,0.0001477,2]
[401241523,1768065044841,-150.81034047,0.00014818,2]
[401241525,1768065044851,-604.12542618,0.0001486,2]
[401241527,1768065044861,-166.66,0.00014873,2]
[401241529,1768065044870,-150.99,0.0001516,2]
[401241531,1768065044880,-166.66,0.0001518,2]
[401241533,1768065044889,-168.78764582,0.00015208,2]
[401241535,1768065044898,-565.67,0.0001538,2]
[401241537,1768065044908,-150.0,0.0001546,2]
[401241540,1768065044921,-166.66,0.00015487,2]
[401241542,1768065044931,-171.85,0.00015577,2]
[401241544,1768065044941,-168.78764582,0.00015747,2]
[401241546,1768065044950,-166.66,0.00015793,2]
[401241548,1768065044960,-151.0,0.00015825,2]
[401241550,1768065044970,-151.0,0.00015825,2]
[401241551,1768065044979,-151.0,0.00015832,2]
[401241553,1768065044989,-151.0,0.00015832,2]
[401241555,1768065044998,-151.0,0.00015878,2]
[401241557,1768065045007,-151.0,0.00015878,2]
[401241559,1768065045017,-1646.08,0.00015879,2]
[401241560,1768065045026,-151.0,0.00015881,2]
[401241561,1768065045036,-151.0,0.00015881,2]
[401241562,1768065045045,-586.58,0.00015918,2]
[401241564,1768065045055,-429.44307017,0.00015983,2]
[401241567,1768065045071,-1523.6235154,0.00015983,2]
[401241619,1768065045533,1672.23995773,0.0001467,2]
[401241703,1768065046313,-8477.85341443,0.00015983,2]
[401241705,1768065046324,-166.66,0.000161,2]
[401241708,1768065046335,-150.0,0.00016184,2]
[401241709,1768065046345,-150.0,0.000162,2]
[401241712,1768065046355,-150.0,0.000162,2]
[401241714,1768065046364,-150.0,0.000162,2]
[401241715,1768065046374,-150.0,0.000162,2]
[401241717,1768065046383,-150.0,0.000162,2]
[401241719,1768065046393,-150.0,0.000162,2]
[401241721,1768065046402,-150.0,0.000162,2]
[401241724,1768065046416,-150.0,0.000162,2]
[401241726,1768065046425,-150.0,0.000162,2]
[401241728,1768065046434,-150.0,0.000162,2]
[401241730,1768065046443,-1680.0,0.00016236,2]
[401241732,1768065046452,-250.0,0.00016236,2]
[401241734,1768065046462,-283.22267591,0.00016236,2]
[401241767,1768065046763,-195.0,0.00016236,2]
[401241769,1768065046773,-2911.0,0.00016302,2]
[401241771,1768065046782,-150.0,0.00016425,2]
[401241773,1768065046792,-500.0,0.00016438,2]
[401241775,1768065046801,-500.0,0.00016438,2]
[401241777,1768065046810,-500.0,0.00016438,2]
[401241779,1768065046819,-500.0,0.00016438,2]
[401241781,1768065046829,-500.0,0.00016438,2]
[401241783,1768065046839,-500.0,0.00016438,2]
[401241784,1768065046849,-500.0,0.00016438,2]
[401241787,1768065046859,-500.0,0.00016438,2]
[401241788,1768065046869,-500.0,0.00016438,2]
[401241790,1768065046878,-500.0,0.00016438,2]
[401241793,1768065046888,-473.06063215,0.00016438,2]
[401241794,1768065046900,-500.0,0.00016438,2]
[401241797,1768065046919,-500.0,0.00016438,2]
[401241799,1768065046929,-500.0,0.00016438,2]
[401241801,1768065046939,-500.0,0.00016438,2]
[401241804,1768065046950,-500.0,0.00016438,2]
[401241806,1768065046960,-500.0,0.00016438,2]
[401241808,1768065046970,-4273.19,0.00016438,2]
[401241810,1768065046979,-888.0,0.00016438,2]
[401241812,1768065046988,-586.58,0.00016515,2]
[401241813,1768065046998,-150.0,0.0001665,2]
[401241815,1768065047008,-160.0,0.00016712,2]
[401241817,1768065047018,-150.0,0.000168,2]
[401241820,1768065047028,-150.0,0.000168,2]
[401241822,1768065047038,-150.0,0.00016875,2]
[401241824,1768065047047,-4820.0,0.00016997,2]
[401241826,1768065047057,-566.0,0.00016997,2]
[401241828,1768065047066,-1312.0,0.00016997,2]
[401241830,1768065047076,-2441.065,0.00016997,2]
[401241832,1768065047086,-6554.0,0.00016997,2]
[401241834,1768065047095,-150.0,0.00017067,2]
[401241836,1768065047105,-154.35236817,0.00017067,2]
[401241838,1768065047114,-158.8205335,0.00017067,2]
[401241840,1768065047123,-150.0,0.00017067,2]
[401241842,1768065047133,-150.0,0.000171,2]
[401241844,1768065047143,-150.0,0.000171,2]
[401241846,1768065047152,-150.0,0.000171,2]
[401241848,1768065047162,-150.0,0.000171,2]
[401241850,1768065047171,-586.58,0.00017112,2]
[401241852,1768065047181,-150.0,0.00017122,2]
[401241854,1768065047190,-150.0,0.00017177,2]
[401241856,1768065047199,-7619.4114849,0.00017229,2]
[401241858,1768065047209,-295.04207158,0.00017231,2]
[401241860,1768065047218,-150.0,0.00017325,2]
[401241862,1768065047227,-150.0,0.00017341,2]
[401241864,1768065047236,-200.0,0.00017341,2]
[401241866,1768065047247,-150.0,0.00017341,2]
[401241868,1768065047257,-150.0,0.00017341,2]
[401241870,1768065047271,-150.0,0.00017341,2]
[401241872,1768065047281,-170.0,0.00017341,2]
[401241874,1768065047293,-150.0,0.00017341,2]
[401241876,1768065047306,-150.0,0.00017341,2]
[401241878,1768065047315,-150.0,0.00017341,2]
[401241880,1768065047325,-150.0,0.00017341,2]
[401241882,1768065047335,-150.0,0.00017341,2]
[401241884,1768065047345,-150.0,0.00017341,2]
[401241886,1768065047357,-3468.0,0.00017341,2]
[401241889,1768065047366,-614.0,0.00017341,2]
[401241890,1768065047375,-1330.0,0.00017341,2]
[401241893,1768065047386,-1405.0,0.00017341,2]
[401241894,1768065047396,-914.0,0.00017341,2]
[401241897,1768065047406,-1201.0,0.00017341,2]
[401241899,1768065047416,-159.16121496,0.00017342,2]
[401241901,1768065047426,-1000.0,0.00017359,2]
[401241903,1768065047436,-1000.0,0.00017359,2]
[401241904,1768065047446,-1000.0,0.00017359,2]
[401241905,1768065047455,-1000.0,0.00017359,2]
[401241906,1768065047465,-1000.0,0.00017359,2]
[401241907,1768065047474,-1000.0,0.00017359,2]
[401241908,1768065047484,-452.13003118,0.00017359,2]
[401241909,1768065047495,-150.0,0.000174,2]
[401241910,1768065047507,-150.0,0.000174,2]
[401241911,1768065047518,-168.0,0.00017442,2]
[401241912,1768065047527,-166.66,0.00017491,2]
[401241913,1768065047537,-1000.0,0.000175,2]
[401241914,1768065047547,-171.85,0.00017524,2]
[401241915,1768065047558,-150.0,0.0001755,2]
[401241916,1768065047568,-168.0,0.00017608,2]
[401241918,1768065047578,-5133.68728248,0.0001764,2]
[401241919,1768065047588,-586.58,0.00017709,2]
[401241920,1768065047598,-1000.0,0.00017715,2]
[401241921,1768065047607,-150.0,0.00017775,2]
[401241922,1768065047617,-1131.41509354,0.000178,2]
[401241923,1768065047626,-12120.57489348,0.000178,2]
[401241924,1768065047642,-168.0,0.00017824,2]
[401241925,1768065047652,-200.0,0.00017856,2]
[401241926,1768065047662,-1337.0,0.0001786,2]
[401241927,1768065047672,-10000.0,0.000179,2]
[401241928,1768065047685,-161.04696811,0.000179,2]
[401241929,1768065047695,-306.27480962,0.000179,2]
[401241930,1768065047705,-542.4119391,0.000179,2]
[401241931,1768065047715,-504.68545535,0.000179,2]
[401241932,1768065047725,-3189.0221581,0.000179,2]
[401241933,1768065047735,-500.0,0.00017973,2]
[401241935,1768065047744,-505.96278656,0.00017973,2]
[401241936,1768065047755,-500.0,0.00017973,2]
[401241938,1768065047765,-500.0,0.00017973,2]
[401241939,1768065047774,-500.0,0.00017973,2]
[401241940,1768065047785,-631.20041978,0.00017973,2]
[401241941,1768065047795,-509.56002599,0.00017973,2]
[401241942,1768065047805,-500.0,0.00017973,2]
[401241943,1768065047816,-451.37665758,0.00017973,2]
[401241944,1768065047826,-500.0,0.00017973,2]
[401241945,1768065047837,-500.0,0.00017973,2]
[401241946,1768065047847,-500.0,0.00017973,2]
[401241947,1768065047857,-500.0,0.00017973,2]
[401241948,1768065047867,-502.96572924,0.00017973,2]
[401241949,1768065047876,-514.63020767,0.00017973,2]
[401241950,1768065047886,-500.0,0.00017973,2]
[401241951,1768065047896,-500.0,0.00017973,2]
[401241952,1768065047906,-500.0,0.00017973,2]
[401241953,1768065047916,-500.0,0.00017973,2]
[401241954,1768065047925,-500.0,0.00017973,2]
[401241955,1768065047935,-500.0,0.00017973,2]
[401241956,1768065047944,-500.0,0.00017973,2]
[401241957,1768065047954,-500.0,0.00017973,2]
[401241958,1768065047963,-500.0,0.00017973,2]
[401241959,1768065047972,-500.0,0.00017973,2]
[401241960,1768065047981,-500.0,0.00017973,2]
[401241961,1768065047994,-500.0,0.00017973,2]
[401241962,1768065048004,-500.0,0.00017973,2]
[401241963,1768065048014,-500.0,0.00017973,2]
[401241964,1768065048023,-150.0,0.00017973,2]
[401241965,1768065048032,-150.0,0.00017973,2]
[401241966,1768065048041,-500.0,0.0001798,2]
[401241967,1768065048051,-527.72,0.0001798,2]
[401241968,1768065048060,-500.0,0.0001798,2]
[401241969,1768065048069,-151.0,0.0001798,2]
[401241970,1768065048079,-151.0,0.0001798,2]
[401241971,1768065048090,-250.39504082,0.00017987,2]
[401241972,1768065048099,-500.0,0.00017999,2]
[401241973,1768065048108,-847.57037688,0.00017999,2]
[401241974,1768065048117,-300.0,0.00017999,2]
[401241975,1768065048127,-435.774689,0.00017999,2]
[401241976,1768065048136,-435.774689,0.00017999,2]
[401241977,1768065048146,-435.774689,0.00017999,2]
[401241978,1768065048156,-435.774689,0.00017999,2]
[401241979,1768065048166,-151.0,0.00017999,2]
[401241980,1768065048175,-666.0,0.00017999,2]
[401241981,1768065048189,-300.0,0.00017999,2]
[401241982,1768065048198,-249.76041872,0.00017999,2]
[401241983,1768065048208,-300.0,0.00017999,2]
[401241984,1768065048218,-500.0,0.00017999,2]
[401241985,1768065048228,-179.82090129,0.00017999,2]
[401241986,1768065048237,-500.0,0.00017999,2]
[401241987,1768065048246,-500.0,0.00017999,2]
[401241988,1768065048256,-160.13776513,0.00017999,2]
[401241989,1768065048266,-500.0,0.00017999,2]
[401241990,1768065048275,-500.0,0.00017999,2]
[401241991,1768065048284,-500.0,0.00017999,2]
[401241992,1768065048294,-500.0,0.00017999,2]
[401241993,1768065048305,-500.0,0.00017999,2]
[401241994,1768065048314,-500.0,0.00017999,2]
[401241995,1768065048324,-500.0,0.00017999,2]
[401241996,1768065048333,-500.0,0.00017999,2]
[401241997,1768065048342,-197.62837774,0.00017999,2]
[401241998,1768065048352,-500.0,0.00017999,2]
[401241999,1768065048362,-500.0,0.00017999,2]
[401242000,1768065048374,-233.5887432,0.00017999,2]
[401242001,1768065048387,-293.02410483,0.00018,2]
[401242002,1768065048398,-260.74974548,0.00018,2]
[401242003,1768065048408,-152.17395716,0.00018,2]
[401242004,1768065048419,-258.8757006,0.00018,2]
[401242005,1768065048430,-255.49693576,0.00018,2]
[401242006,1768065048440,-155.27623947,0.00018,2]
[401242007,1768065048450,-150.0,0.00018,2]
[401242008,1768065048461,-150.0,0.00018,2]
[401242009,1768065048470,-123450.47373309,0.00018,2]
[401242010,1768065048490,-4371.71121826,0.00018,2]
[401242011,1768065048507,-125200.45635296,0.00018,2]
[401242012,1768065048518,-26422.6260989,0.00018,2]
[401242013,1768065048530,-23721.38823331,0.00018,2]
[401242014,1768065048543,-2756.01588973,0.00018,2]
[401242015,1768065048555,-19266.48763918,0.00018,2]
[401242016,1768065048571,-5824.83718009,0.00018,2]
[401242033,1768065667726,156.47691489,0.00014702,2]
[401242036,1768065686712,163.39,8.046e-05,2]
[401242037,1768065686916,163.39,9.335e-05,2]
[401242038,1768065687124,163.39,0.00010623,2]
[401242039,1768065687321,163.39,0.00011911,2]
[401242040,1768065687507,163.39,0.000132,2]
[401242041,1768065687793,163.39,0.00014488,2]
[401242042,1768065694269,1346.234,0.00014466,2]
[401242043,1768065870256,328.62019522,0.00014702,2]
[401242044,1768065873463,328.62019522,0.00014702,2]
[401242045,1768065905369,150.81034047,0.00014702,2]
[401242046,1768065955720,-272.0,0.00014752,2]
[401242047,1768065959468,168.78764582,0.00014702,2]
[401242048,1768065973340,156.47691487,0.00014702,2]
[401242049,1768066023765,246.46514645,0.00014702,2]
[401242050,1768066026161,246.46514645,0.00014702,2]
[401242057,1768066118713,156.47691487,0.00014702,2]
[401242058,1768066122049,4253.32823154,0.00014661,2]